[Event "*** Titled Tuesday Blitz"]
[Site "Chess.com"]
[Date "2018.04.03"]
[Round "3"]
[White "Korchmar_Vasiliy"]
[Black "Konavets"]
[Result "1-0"]
[WhiteElo "2651"]
[BlackElo "2759"]
[TimeControl "180+2"]
[EndTime "13:38:08 PDT"]
[Termination "Korchmar_Vasiliy won by resignation"]

1. d4 {[%clk 0:02:59.4]} 1... Nf6 {[%clk 0:02:56.9]} 2. Nf3 {[%clk 0:03:00.5]}
2... d6 {[%clk 0:02:56.4]} 3. Bg5 {[%clk 0:03:01.2]} 3... Bg4 {[%clk 0:02:57.5]}
4. Nbd2 {[%clk 0:02:56.4]} 4... Nbd7 {[%clk 0:02:58.5]} 5. c3 {[%clk 0:02:54.6]}
5... e5 {[%clk 0:02:59.5]} 6. h3 {[%clk 0:02:46.1]} 6... Bh5 {[%clk 0:03:00.3]}
7. g4 {[%clk 0:02:42.2]} 7... Bg6 {[%clk 0:03:01.3]} 8. Nh4 {[%clk 0:02:43.5]}
8... Be7 {[%clk 0:02:57.6]} 9. Bg2 {[%clk 0:02:42.1]} 9... c6 {[%clk 0:02:54.4]}
10. Qb3 {[%clk 0:02:37.4]} 10... Qc7 {[%clk 0:02:55.3]} 11. O-O {[%clk
0:02:27.8]} 11... e4 {[%clk 0:02:20]} 12. f4 {[%clk 0:01:46.6]} 12... exf3
{[%clk 0:02:00.4]} 13. exf3 {[%clk 0:01:47.7]} 13... Bd3 {[%clk 0:01:55.8]} 14.
Rfe1 {[%clk 0:01:47.5]} 14... h6 {[%clk 0:01:56.5]} 15. Be3 {[%clk 0:01:19.5]}
15... O-O {[%clk 0:01:51.3]} 16. c4 {[%clk 0:01:16.9]} 16... Bh7 {[%clk
0:01:50.1]} 17. Bxh6 {[%clk 0:01:18]} 17... Nd5 {[%clk 0:01:51.1]} 18. Nf5
{[%clk 0:01:06.1]} 18... Bxf5 {[%clk 0:01:48.4]} 19. gxf5 {[%clk 0:01:06.7]}
19... Bh4 {[%clk 0:01:49.6]} 20. Re4 {[%clk 0:01:04.6]} 20... Bf6 {[%clk
0:01:26.4]} 21. Bxg7 {[%clk 0:01:05.7]} 21... Bxg7 {[%clk 0:01:26.7]} 22. cxd5
{[%clk 0:01:07.3]} 22... Nf6 {[%clk 0:01:28.1]} 23. Rh4 {[%clk 0:01:01]} 23...
Nxd5 {[%clk 0:01:25.4]} 24. Kh1 {[%clk 0:00:59.4]} 24... Qe7 {[%clk 0:01:23.9]}
25. Rg4 {[%clk 0:00:59.9]} 25... Nf6 {[%clk 0:01:25]} 26. Rg3 {[%clk 0:00:57.5]}
26... Nh5 {[%clk 0:01:26.3]} 27. Rg4 {[%clk 0:00:58.6]} 27... Nf6 {[%clk
0:01:27.2]} 28. Rg3 {[%clk 0:00:59.4]} 28... Nh5 {[%clk 0:01:24.3]} 29. Rg4
{[%clk 0:01:00.4]} 29... d5 {[%clk 0:01:25.9]} 30. f4 {[%clk 0:00:44.3]} 30...
Rae8 {[%clk 0:01:19.9]} 31. Nf3 {[%clk 0:00:44.2]} 31... Nf6 {[%clk 0:01:19.3]}
32. Rg3 {[%clk 0:00:44.8]} 32... Ne4 {[%clk 0:01:20.2]} 33. Rg5 {[%clk
0:00:40.4]} 33... Qd6 {[%clk 0:01:13.9]} 34. Rxg7+ {[%clk 0:00:38.1]} 34... Kxg7
{[%clk 0:01:14.3]} 35. Ne5 {[%clk 0:00:40]} 35... Qh6 {[%clk 0:01:13.9]} 36.
Bxe4 {[%clk 0:00:37.6]} 36... dxe4 {[%clk 0:01:14.4]} 37. Rg1+ {[%clk
0:00:39.2]} 37... Kh7 {[%clk 0:01:15.3]} 38. Qe3 {[%clk 0:00:35.7]} 38... Rg8
{[%clk 0:01:13.9]} 39. Rg5 {[%clk 0:00:34]} 39... Qh4 {[%clk 0:00:52]} 40. Ng4
{[%clk 0:00:29.4]} 40... Rxg5 {[%clk 0:00:31.8]} 41. fxg5 {[%clk 0:00:31.3]}
41... Kg7 {[%clk 0:00:33.1]} 42. Kg2 {[%clk 0:00:28.3]} 42... Rd8 {[%clk
0:00:26.4]} 43. f6+ {[%clk 0:00:24.8]} 43... Kh8 {[%clk 0:00:23.9]} 44. Nh6
{[%clk 0:00:25.9]} 44... Qh5 {[%clk 0:00:21.2]} 45. h4 {[%clk 0:00:21.8]} 45...
Qg6 {[%clk 0:00:18.7]} 46. Qf4 {[%clk 0:00:19.7]} 46... Re8 {[%clk 0:00:17.6]}
47. Qg4 {[%clk 0:00:18.5]} 47... e3 {[%clk 0:00:18.5]} 48. Qd7 {[%clk
0:00:15.4]} 48... Qe4+ {[%clk 0:00:18.8]} 49. Kg3 {[%clk 0:00:15.8]} 49... Qe6
{[%clk 0:00:15.5]} 50. Nxf7+ {[%clk 0:00:13.9]} 50... Kh7 {[%clk 0:00:17]} 51.
Qxe6 {[%clk 0:00:11.6]} 51... Rxe6 {[%clk 0:00:18.9]} 52. h5 {[%clk 0:00:10.2]}
52... e2 {[%clk 0:00:17.7]} 53. g6+ {[%clk 0:00:06.7]} 53... Kg8 {[%clk
0:00:19.1]} 54. Nh6+ {[%clk 0:00:08]} 54... Kf8 {[%clk 0:00:20.5]} 55. g7+
{[%clk 0:00:09.6]} 55... Ke8 {[%clk 0:00:22]} 56. g8=Q+ {[%clk 0:00:10.9]} 56...
Kd7 {[%clk 0:00:23.6]} 57. Qf7+ {[%clk 0:00:09.6]} 57... Kd6 {[%clk 0:00:24.5]}
58. Nf5+ {[%clk 0:00:10.7]} 58... Kd5 {[%clk 0:00:26]} 59. Ne7+ {[%clk
0:00:10.1]} 59... Kd6 {[%clk 0:00:26.2]} 60. Nc8+ {[%clk 0:00:10.8]} 60... Kd5
{[%clk 0:00:27.6]} 61. Qd7+ {[%clk 0:00:11.8]} 1-0

[Event "*** Titled Tuesday Blitz"]
[Site "Chess.com"]
[Date "2018.04.03"]
[Round "3"]
[White "GMKrikor"]
[Black "ZapataCharlesS"]
[Result "0-1"]
[WhiteElo "2639"]
[BlackElo "2660"]
[TimeControl "180+2"]
[EndTime "13:38:11 PDT"]
[Termination "ZapataCharlesS won by resignation"]

1. e4 {[%clk 0:03:01.9]} 1... e5 {[%clk 0:02:59.2]} 2. Nf3 {[%clk 0:03:02.6]}
2... d6 {[%clk 0:02:57.7]} 3. d4 {[%clk 0:03:02.2]} 3... exd4 {[%clk 0:02:59.6]}
4. Nxd4 {[%clk 0:03:02.5]} 4... Nf6 {[%clk 0:03:00.9]} 5. Nc3 {[%clk 0:03:03.7]}
5... Be7 {[%clk 0:03:01.6]} 6. g3 {[%clk 0:03:05.2]} 6... O-O {[%clk 0:03:03.5]}
7. Bg2 {[%clk 0:03:06.7]} 7... Nc6 {[%clk 0:02:59.3]} 8. O-O {[%clk 0:03:06.9]}
8... Bd7 {[%clk 0:02:58.4]} 9. h3 {[%clk 0:03:07.2]} 9... Nxd4 {[%clk
0:02:56.7]} 10. Qxd4 {[%clk 0:03:07.9]} 10... Bc6 {[%clk 0:02:58.6]} 11. Bf4
{[%clk 0:03:05.4]} 11... Nd7 {[%clk 0:02:58]} 12. Rad1 {[%clk 0:03:05.5]} 12...
Bf6 {[%clk 0:02:55.6]} 13. Qd2 {[%clk 0:03:06]} 13... Re8 {[%clk 0:02:54.6]} 14.
Rfe1 {[%clk 0:03:02.8]} 14... h6 {[%clk 0:02:45]} 15. b3 {[%clk 0:02:54]} 15...
a5 {[%clk 0:02:38.9]} 16. Nd5 {[%clk 0:02:47.6]} 16... Bxd5 {[%clk 0:02:27.1]}
17. Qxd5 {[%clk 0:02:47.4]} 17... Rb8 {[%clk 0:02:14.7]} 18. Be3 {[%clk
0:02:07]} 18... Bc3 {[%clk 0:01:55.2]} 19. Re2 {[%clk 0:02:02.8]} 19... Bb4
{[%clk 0:01:41.7]} 20. f4 {[%clk 0:01:47.4]} 20... Qe7 {[%clk 0:01:37.7]} 21.
Bf2 {[%clk 0:01:12.4]} 21... Bc5 {[%clk 0:01:34.9]} 22. Bxc5 {[%clk 0:01:05]}
22... Nxc5 {[%clk 0:01:36.8]} 23. Bf3 {[%clk 0:00:59.7]} 23... Rbd8 {[%clk
0:01:33.5]} 24. Kg2 {[%clk 0:00:58.3]} 24... c6 {[%clk 0:01:28.6]} 25. Qd4
{[%clk 0:00:58.3]} 25... g5 {[%clk 0:01:09.2]} 26. Rde1 {[%clk 0:00:39.3]} 26...
Ne6 {[%clk 0:01:02.6]} 27. Qd2 {[%clk 0:00:39.3]} 27... gxf4 {[%clk 0:01:04.5]}
28. gxf4 {[%clk 0:00:40.4]} 28... Qf6 {[%clk 0:00:59.8]} 29. f5 {[%clk
0:00:35.9]} 29... Nc5 {[%clk 0:00:59.7]} 30. Qf4 {[%clk 0:00:31.1]} 30... Kh8
{[%clk 0:00:53.5]} 31. Kh2 {[%clk 0:00:32.5]} 31... Rg8 {[%clk 0:00:53.6]} 32.
Rg2 {[%clk 0:00:24]} 32... Rxg2+ {[%clk 0:00:49.3]} 33. Bxg2 {[%clk 0:00:25.9]}
33... Nd7 {[%clk 0:00:49.2]} 34. Rd1 {[%clk 0:00:24]} 34... Ne5 {[%clk
0:00:49.8]} 35. Rd2 {[%clk 0:00:20.3]} 35... Rg8 {[%clk 0:00:38.7]} 36. a3
{[%clk 0:00:17.6]} 36... b5 {[%clk 0:00:38.8]} 37. Kh1 {[%clk 0:00:15.4]} 37...
a4 {[%clk 0:00:37.5]} 38. Qe3 {[%clk 0:00:08.2]} 38... axb3 {[%clk 0:00:35.9]}
39. cxb3 {[%clk 0:00:10.1]} 39... Ra8 {[%clk 0:00:27.8]} 40. Qd4 {[%clk
0:00:03.6]} 40... Rxa3 {[%clk 0:00:22.4]} 41. Qxd6 {[%clk 0:00:04.6]} 41... Qxd6
{[%clk 0:00:22.8]} 42. Rxd6 {[%clk 0:00:06.5]} 42... Rxb3 {[%clk 0:00:21.5]} 43.
Rxh6+ {[%clk 0:00:07.6]} 43... Kg7 {[%clk 0:00:22.1]} 44. Rd6 {[%clk 0:00:08.9]}
44... Rb1+ {[%clk 0:00:20]} 45. Kh2 {[%clk 0:00:09.8]} 45... b4 {[%clk
0:00:21.5]} 46. Kg3 {[%clk 0:00:04.9]} 46... b3 {[%clk 0:00:19.9]} 47. Rd8
{[%clk 0:00:06.1]} 47... b2 {[%clk 0:00:18.3]} 48. Rb8 {[%clk 0:00:07.3]} 48...
Nc4 {[%clk 0:00:19.6]} 49. e5 {[%clk 0:00:07.2]} 49... Re1 {[%clk 0:00:19.4]}
50. f6+ {[%clk 0:00:09.1]} 50... Kg6 {[%clk 0:00:18.7]} 51. Rg8+ {[%clk
0:00:04.9]} 51... Kf5 {[%clk 0:00:19.6]} 52. h4 {[%clk 0:00:04.2]} 52... b1=Q
{[%clk 0:00:16.8]} 53. Rg5+ {[%clk 0:00:04.8]} 53... Ke6 {[%clk 0:00:17.6]} 54.
Bh3+ {[%clk 0:00:06.3]} 54... Kd5 {[%clk 0:00:18.9]} 55. e6+ {[%clk 0:00:07.9]}
55... Kd4 {[%clk 0:00:17.1]} 0-1

[Event "*** Titled Tuesday Blitz"]
[Site "Chess.com"]
[Date "2018.04.03"]
[Round "3"]
[White "murmah2003"]
[Black "Koksik_13"]
[Result "1-0"]
[WhiteElo "2449"]
[BlackElo "2474"]
[TimeControl "180+2"]
[EndTime "13:38:14 PDT"]
[Termination "murmah2003 won on time"]

1. d4 {[%clk 0:03:01.9]} 1... e6 {[%clk 0:03:00.7]} 2. c4 {[%clk 0:02:59]} 2...
d5 {[%clk 0:03:01.4]} 3. Nf3 {[%clk 0:02:57.9]} 3... a6 {[%clk 0:03:02]} 4. cxd5
{[%clk 0:02:55.9]} 4... exd5 {[%clk 0:03:02.8]} 5. Nc3 {[%clk 0:02:57.8]} 5...
c6 {[%clk 0:03:01.1]} 6. Bf4 {[%clk 0:02:56.2]} 6... Bd6 {[%clk 0:02:59.8]} 7.
Bg3 {[%clk 0:02:32.3]} 7... Nf6 {[%clk 0:02:51]} 8. e3 {[%clk 0:02:30.9]} 8...
Bf5 {[%clk 0:02:51.6]} 9. Qb3 {[%clk 0:02:22.1]} 9... b5 {[%clk 0:02:49.8]} 10.
Be2 {[%clk 0:02:14.1]} 10... O-O {[%clk 0:02:50.6]} 11. O-O {[%clk 0:02:12.9]}
11... Ne4 {[%clk 0:02:51.5]} 12. Nxe4 {[%clk 0:02:07]} 12... Bxe4 {[%clk
0:02:53.4]} 13. Bxd6 {[%clk 0:02:06.2]} 13... Qxd6 {[%clk 0:02:53.5]} 14. Rac1
{[%clk 0:01:44]} 14... Nd7 {[%clk 0:02:53.7]} 15. Qc3 {[%clk 0:01:42.1]} 15...
Rac8 {[%clk 0:02:49]} 16. Qa5 {[%clk 0:01:39.1]} 16... f5 {[%clk 0:02:45.3]} 17.
Qxa6 {[%clk 0:01:31.4]} 17... f4 {[%clk 0:02:46.1]} 18. exf4 {[%clk 0:01:29.3]}
18... Nb8 {[%clk 0:02:19.5]} 19. Qb7 {[%clk 0:01:19.9]} 19... Rc7 {[%clk
0:02:13.9]} 20. Qb6 {[%clk 0:01:17]} 20... Nd7 {[%clk 0:02:14.5]} 21. Qa6 {[%clk
0:01:15.3]} 21... Qxf4 {[%clk 0:02:10.6]} 22. Rc3 {[%clk 0:00:48]} 22... Nb8
{[%clk 0:01:50.3]} 23. Qa5 {[%clk 0:00:45.8]} 23... Rcf7 {[%clk 0:01:50.9]} 24.
Ne5 {[%clk 0:00:38.5]} 24... Rf6 {[%clk 0:01:49.5]} 25. Rg3 {[%clk 0:00:29.9]}
25... h5 {[%clk 0:01:03.2]} 26. Qc7 {[%clk 0:00:23.6]} 26... Qh6 {[%clk
0:01:04.5]} 27. Bf3 {[%clk 0:00:13.8]} 27... h4 {[%clk 0:01:02.3]} 28. Rg4
{[%clk 0:00:06.7]} 28... Bf5 {[%clk 0:00:53]} 29. h3 {[%clk 0:00:07.5]} 29...
Kh8 {[%clk 0:00:42.3]} 30. Qa5 {[%clk 0:00:05.7]} 30... Nd7 {[%clk 0:00:37.5]}
31. Qc3 {[%clk 0:00:06]} 31... g5 {[%clk 0:00:23.7]} 32. Qd2 {[%clk 0:00:04.2]}
32... Rg8 {[%clk 0:00:23.1]} 33. Qc3 {[%clk 0:00:03.3]} 33... Qg7 {[%clk
0:00:17.8]} 34. Re1 {[%clk 0:00:04.6]} 34... Bxg4 {[%clk 0:00:16.4]} 35. Bxg4
{[%clk 0:00:06.5]} 35... Nxe5 {[%clk 0:00:15.7]} 36. Rxe5 {[%clk 0:00:08.4]}
36... Rgf8 {[%clk 0:00:14.9]} 37. f3 {[%clk 0:00:09.3]} 37... Qg6 {[%clk
0:00:13.1]} 38. a3 {[%clk 0:00:09]} 38... Re8 {[%clk 0:00:09.3]} 39. Qe3 {[%clk
0:00:09]} 39... Rxe5 {[%clk 0:00:08.7]} 40. dxe5 {[%clk 0:00:09.9]} 40... Rf8
{[%clk 0:00:09.2]} 41. e6 {[%clk 0:00:11]} 41... Qf6 {[%clk 0:00:10.3]} 42. Qc5
{[%clk 0:00:10.5]} 42... Re8 {[%clk 0:00:07.1]} 43. Qxc6 {[%clk 0:00:11.4]}
43... Qd4+ {[%clk 0:00:05.7]} 44. Kh1 {[%clk 0:00:12.3]} 44... Re7 {[%clk
0:00:06.5]} 45. Qd6 {[%clk 0:00:11.5]} 45... Qf6 {[%clk 0:00:03.9]} 46. Qxd5
{[%clk 0:00:12.5]} 46... Qxb2 {[%clk 0:00:03.7]} 47. Qd8+ {[%clk 0:00:12.7]}
47... Kg7 {[%clk 0:00:03.1]} 48. Qxe7+ {[%clk 0:00:13.7]} 48... Kh6 {[%clk
0:00:03.7]} 49. Qf8+ {[%clk 0:00:14.7]} 49... Kg6 {[%clk 0:00:05]} 50. Qf7+
{[%clk 0:00:12.2]} 50... Kh6 {[%clk 0:00:05.5]} 51. e7 {[%clk 0:00:12.3]} 51...
Qa1+ {[%clk 0:00:05.6]} 52. Kh2 {[%clk 0:00:13.5]} 52... Qe5+ {[%clk 0:00:06.4]}
53. f4 {[%clk 0:00:15]} 53... gxf4 {[%clk 0:00:07.2]} 54. Qe6+ {[%clk
0:00:16.3]} 54... Qxe6 {[%clk 0:00:08]} 55. Bxe6 {[%clk 0:00:18.2]} 1-0

[Event "*** Titled Tuesday Blitz"]
[Site "Chess.com"]
[Date "2018.04.03"]
[Round "3"]
[White "ChessQueen"]
[Black "kasparik_garik"]
[Result "1-0"]
[WhiteElo "2658"]
[BlackElo "2515"]
[TimeControl "180+2"]
[EndTime "13:38:37 PDT"]
[Termination "ChessQueen won on time"]

1. e4 {[%clk 0:03:01.9]} 1... g6 {[%clk 0:02:58.1]} 2. d4 {[%clk 0:03:02.5]}
2... Bg7 {[%clk 0:02:58.7]} 3. Nc3 {[%clk 0:03:04.1]} 3... c6 {[%clk 0:02:59.1]}
4. Be3 {[%clk 0:03:04.1]} 4... d5 {[%clk 0:02:59.6]} 5. Nf3 {[%clk 0:03:00.8]}
5... dxe4 {[%clk 0:02:56]} 6. Nxe4 {[%clk 0:03:01.2]} 6... Nd7 {[%clk 0:02:57]}
7. Bc4 {[%clk 0:02:57.7]} 7... Ngf6 {[%clk 0:02:57.8]} 8. Neg5 {[%clk
0:02:56.8]} 8... O-O {[%clk 0:02:58.2]} 9. Qd3 {[%clk 0:02:42.5]} 9... Nd5
{[%clk 0:02:55.3]} 10. Bd2 {[%clk 0:02:27.3]} 10... b5 {[%clk 0:02:34.7]} 11.
Bb3 {[%clk 0:02:27.3]} 11... e6 {[%clk 0:02:26.2]} 12. O-O {[%clk 0:02:24.6]}
12... c5 {[%clk 0:02:17.3]} 13. c4 {[%clk 0:02:20.5]} 13... bxc4 {[%clk
0:02:16.3]} 14. Bxc4 {[%clk 0:02:21]} 14... cxd4 {[%clk 0:02:06.8]} 15. Bxd5
{[%clk 0:02:01.8]} 15... Nc5 {[%clk 0:02:03.8]} 16. Qc4 {[%clk 0:02:02.1]} 16...
Qxd5 {[%clk 0:02:04.7]} 17. Qxd5 {[%clk 0:02:03.2]} 17... exd5 {[%clk
0:02:05.8]} 18. Bb4 {[%clk 0:02:04.4]} 18... Ne6 {[%clk 0:01:43.6]} 19. Bxf8
{[%clk 0:02:02.8]} 19... Kxf8 {[%clk 0:01:30.8]} 20. Rfd1 {[%clk 0:01:58.3]}
20... Nxg5 {[%clk 0:01:27.5]} 21. Nxg5 {[%clk 0:01:59.1]} 21... Bf5 {[%clk
0:01:25.1]} 22. Nf3 {[%clk 0:01:48]} 22... Bc2 {[%clk 0:01:18.7]} 23. Nxd4
{[%clk 0:01:33.4]} 23... Bxd1 {[%clk 0:01:18.7]} 24. Rxd1 {[%clk 0:01:34.9]}
24... Bxd4 {[%clk 0:01:02.5]} 25. Rxd4 {[%clk 0:01:35.2]} 25... Rc8 {[%clk
0:01:03.7]} 26. g3 {[%clk 0:01:29.3]} 26... Rc5 {[%clk 0:01:04.1]} 27. Ra4
{[%clk 0:01:19.5]} 27... a5 {[%clk 0:01:04.2]} 28. Kf1 {[%clk 0:01:16.6]} 28...
Ke7 {[%clk 0:01:05]} 29. Ke2 {[%clk 0:01:17.8]} 29... Rc2+ {[%clk 0:01:02.3]}
30. Ke3 {[%clk 0:01:19.1]} 30... Rxb2 {[%clk 0:01:03]} 31. Rxa5 {[%clk
0:01:20.4]} 31... h5 {[%clk 0:00:54.8]} 32. Ra7+ {[%clk 0:01:17.8]} 32... Ke6
{[%clk 0:00:55]} 33. a4 {[%clk 0:01:19]} 33... Ra2 {[%clk 0:00:51.1]} 34. h4
{[%clk 0:01:18.4]} 34... f6 {[%clk 0:00:49]} 35. a5 {[%clk 0:01:10.3]} 35... Ke5
{[%clk 0:00:35.7]} 36. a6 {[%clk 0:01:02.2]} 36... Ra3+ {[%clk 0:00:35.8]} 37.
Ke2 {[%clk 0:01:03.1]} 37... Kf5 {[%clk 0:00:35.6]} 38. f3 {[%clk 0:00:54.8]}
38... d4 {[%clk 0:00:35.2]} 39. Ra8 {[%clk 0:00:54.8]} 39... Ke5 {[%clk
0:00:33.1]} 40. a7 {[%clk 0:00:33.5]} 40... Kf5 {[%clk 0:00:33.8]} 41. Kd2
{[%clk 0:00:33.6]} 41... Ra6 {[%clk 0:00:30.1]} 42. Kd3 {[%clk 0:00:34.4]} 42...
Ra4 {[%clk 0:00:24.3]} 43. Kc2 {[%clk 0:00:31.5]} 43... Ra6 {[%clk 0:00:25.2]}
44. Kb3 {[%clk 0:00:29.6]} 44... Ra1 {[%clk 0:00:25.1]} 45. Kc4 {[%clk
0:00:29.7]} 45... Ra4+ {[%clk 0:00:25.7]} 46. Kd3 {[%clk 0:00:30.8]} 46... Ra3+
{[%clk 0:00:26.5]} 47. Kxd4 {[%clk 0:00:31.6]} 47... Ra4+ {[%clk 0:00:27.8]} 48.
Kc5 {[%clk 0:00:32.9]} 48... Ra1 {[%clk 0:00:29]} 49. g4+ {[%clk 0:00:30.4]}
49... hxg4 {[%clk 0:00:28.8]} 50. fxg4+ {[%clk 0:00:31.7]} 50... Kxg4 {[%clk
0:00:29.8]} 51. h5 {[%clk 0:00:32.9]} 51... gxh5 {[%clk 0:00:14.8]} 52. Rg8+
{[%clk 0:00:33.7]} 52... Kf3 {[%clk 0:00:15.6]} 53. a8=Q+ {[%clk 0:00:34.2]}
53... Rxa8 {[%clk 0:00:16.6]} 54. Rxa8 {[%clk 0:00:35.7]} 54... h4 {[%clk
0:00:18.4]} 55. Rh8 {[%clk 0:00:37.2]} 55... Kg3 {[%clk 0:00:18.6]} 56. Kd4
{[%clk 0:00:38.4]} 56... h3 {[%clk 0:00:19.3]} 57. Ke3 {[%clk 0:00:39.3]} 57...
Kg2 {[%clk 0:00:18.9]} 58. Ke2 {[%clk 0:00:39.9]} 58... h2 {[%clk 0:00:13.5]}
59. Rg8+ {[%clk 0:00:40.2]} 59... Kh3 {[%clk 0:00:11.1]} 60. Kf2 {[%clk
0:00:38.1]} 60... h1=Q {[%clk 0:00:07.4]} 61. Rh8+ {[%clk 0:00:37.9]} 1-0

[Event "*** Titled Tuesday Blitz"]
[Site "Chess.com"]
[Date "2018.04.03"]
[Round "3"]
[White "Fedor_Dvenyatin"]
[Black "Tramontanaaa"]
[Result "0-1"]
[WhiteElo "2523"]
[BlackElo "2394"]
[TimeControl "180+2"]
[EndTime "13:38:38 PDT"]
[Termination "Tramontanaaa won by resignation"]

1. d4 {[%clk 0:02:56.7]} 1... Nf6 {[%clk 0:03:00.4]} 2. Nf3 {[%clk 0:02:58.6]}
2... g6 {[%clk 0:03:01.5]} 3. c4 {[%clk 0:03:00.5]} 3... Bg7 {[%clk 0:03:01.8]}
4. g3 {[%clk 0:03:02.4]} 4... d5 {[%clk 0:03:02.5]} 5. Bg2 {[%clk 0:03:04.3]}
5... dxc4 {[%clk 0:03:03.2]} 6. Qa4+ {[%clk 0:03:02.4]} 6... Nbd7 {[%clk
0:02:59.5]} 7. O-O {[%clk 0:03:01.5]} 7... O-O {[%clk 0:02:59.5]} 8. Qxc4 {[%clk
0:03:01.9]} 8... Nb6 {[%clk 0:03:00.2]} 9. Qd3 {[%clk 0:02:58.4]} 9... Bf5
{[%clk 0:02:58]} 10. Qd1 {[%clk 0:02:58.3]} 10... c5 {[%clk 0:02:35.1]} 11. dxc5
{[%clk 0:02:55.9]} 11... Nbd7 {[%clk 0:02:35.9]} 12. Nc3 {[%clk 0:02:54.9]}
12... Nxc5 {[%clk 0:02:35]} 13. Be3 {[%clk 0:02:56.1]} 13... Nce4 {[%clk
0:02:14.7]} 14. Bd4 {[%clk 0:02:49.7]} 14... Nxc3 {[%clk 0:01:53.2]} 15. Bxc3
{[%clk 0:02:49.3]} 15... Be4 {[%clk 0:01:48.5]} 16. Qb3 {[%clk 0:02:41.1]} 16...
Bd5 {[%clk 0:01:45]} 17. Qa3 {[%clk 0:02:41.1]} 17... Qb6 {[%clk 0:01:39]} 18.
Rad1 {[%clk 0:02:25.6]} 18... e6 {[%clk 0:01:33.7]} 19. Rd4 {[%clk 0:02:19.1]}
19... Ne4 {[%clk 0:01:25.2]} 20. Rb4 {[%clk 0:02:19.3]} 20... Qc5 {[%clk
0:01:24.4]} 21. Bxg7 {[%clk 0:02:14.3]} 21... Kxg7 {[%clk 0:01:22.3]} 22. Qa4
{[%clk 0:02:05.9]} 22... Bc6 {[%clk 0:01:20.5]} 23. Qb3 {[%clk 0:02:01.6]} 23...
Bd5 {[%clk 0:01:16.8]} 24. Qa4 {[%clk 0:02:00.7]} 24... Bc6 {[%clk 0:01:17.5]}
25. Qa3 {[%clk 0:01:59.2]} 25... a5 {[%clk 0:01:09.5]} 26. Rb3 {[%clk
0:01:59.4]} 26... Qxa3 {[%clk 0:01:10.2]} 27. Rxa3 {[%clk 0:02:00.2]} 27... Rfd8
{[%clk 0:01:05.9]} 28. Ne5 {[%clk 0:01:57.6]} 28... Bd5 {[%clk 0:01:05.8]} 29.
Rd1 {[%clk 0:01:50.5]} 29... f6 {[%clk 0:01:03.7]} 30. Nd3 {[%clk 0:01:44.1]}
30... b5 {[%clk 0:01:00.4]} 31. Bxe4 {[%clk 0:01:42.7]} 31... Bxe4 {[%clk
0:01:00.6]} 32. Rc3 {[%clk 0:01:44]} 32... Rac8 {[%clk 0:00:58.8]} 33. Rxc8
{[%clk 0:01:22]} 33... Rxc8 {[%clk 0:00:59.3]} 34. Nf4 {[%clk 0:01:23.3]} 34...
e5 {[%clk 0:00:50.9]} 35. Ne6+ {[%clk 0:01:13]} 35... Kf7 {[%clk 0:00:46.7]} 36.
Nd8+ {[%clk 0:01:13.5]} 36... Ke7 {[%clk 0:00:46.1]} 37. f3 {[%clk 0:01:12.2]}
37... Ba8 {[%clk 0:00:46.3]} 38. Nf7 {[%clk 0:01:08.2]} 38... Kxf7 {[%clk
0:00:46.5]} 39. Rd7+ {[%clk 0:01:09.2]} 39... Ke6 {[%clk 0:00:46.5]} 40. Rxh7
{[%clk 0:01:10.5]} 40... Bd5 {[%clk 0:00:43.8]} 41. Ra7 {[%clk 0:01:03.2]} 41...
a4 {[%clk 0:00:43.8]} 42. Ra5 {[%clk 0:01:03.4]} 42... Rc1+ {[%clk 0:00:37.7]}
43. Kf2 {[%clk 0:01:00.3]} 43... Bc6 {[%clk 0:00:36.9]} 44. b3 {[%clk
0:00:58.1]} 44... axb3 {[%clk 0:00:34.9]} 45. axb3 {[%clk 0:00:58.9]} 45... Rb1
{[%clk 0:00:36.3]} 46. Ra6 {[%clk 0:00:57.6]} 46... Kd6 {[%clk 0:00:36.3]} 47.
h4 {[%clk 0:00:55.3]} 47... Rxb3 {[%clk 0:00:36.6]} 48. Ra7 {[%clk 0:00:56.6]}
48... Rb1 {[%clk 0:00:30.7]} 49. Rg7 {[%clk 0:00:56.6]} 49... Be8 {[%clk
0:00:30.5]} 50. g4 {[%clk 0:00:49.9]} 50... b4 {[%clk 0:00:30.8]} 51. Rb7 {[%clk
0:00:50.3]} 51... b3 {[%clk 0:00:28.8]} 52. e3 {[%clk 0:00:46.4]} 52... b2
{[%clk 0:00:28.7]} 53. Kg2 {[%clk 0:00:47.4]} 53... Bc6 {[%clk 0:00:28.4]} 54.
Rb8 {[%clk 0:00:46.9]} 54... Bxf3+ {[%clk 0:00:20.2]} 55. Kf2 {[%clk 0:00:32]}
55... Bxg4 {[%clk 0:00:20.3]} 56. e4 {[%clk 0:00:29.8]} 56... Bh3 {[%clk
0:00:18.7]} 57. h5 {[%clk 0:00:25.5]} 57... gxh5 {[%clk 0:00:19.3]} 58. Kg3
{[%clk 0:00:21.3]} 58... Rg1+ {[%clk 0:00:18.9]} 59. Kh4 {[%clk 0:00:16.2]}
59... b1=Q {[%clk 0:00:19.7]} 60. Rd8+ {[%clk 0:00:16.9]} 60... Ke7 {[%clk
0:00:19.2]} 61. Rd2 {[%clk 0:00:16.6]} 61... Qxe4+ {[%clk 0:00:19.6]} 0-1